[Event "Titled Tuesday Blitz January 10 Early 2023"]
[White "ritanovikova"]
[Black "Shubenkova, Veronika"]
[BlackFideId "44124040"]
[WhiteElo "2112"]
[BlackElo "1960"]
[Result "1-0"]
[Round "02"]
[TimeControl "180+2"]
[Date "2023.01.10"]
[WhiteClock "0:00:16"]
[BlackClock "0:00:09"]

1. d4 {[%clk 0:02:59]}  d5 {[%clk 0:02:55]} 2. Bf4 {[%clk 0:02:58]}  e6 {[%clk 0:02:53]} 3. e3 {[%clk 0:02:54]}  Bd6 {[%clk 0:02:52]} 4. Bg3 {[%clk 0:02:54]}  Nf6 {[%clk 0:02:51]} 5. Nd2 {[%clk 0:02:52]}  O-O {[%clk 0:02:51]} 6. Ngf3 {[%clk 0:02:50]}  Re8 {[%clk 0:02:50]} 7. Be2 {[%clk 0:02:48]}  Nbd7 {[%clk 0:02:48]} 8. O-O {[%clk 0:02:47]}  e5 {[%clk 0:02:47]} 9. dxe5 {[%clk 0:02:46]}  Nxe5 {[%clk 0:02:47]} 10. Nxe5 {[%clk 0:02:45]}  Bxe5 {[%clk 0:02:47]} 11. c3 {[%clk 0:02:44]}  c6 {[%clk 0:02:46]} 12. Nf3 {[%clk 0:02:43]}  Bxg3 {[%clk 0:02:43]} 13. hxg3 {[%clk 0:02:44]}  Bg4 {[%clk 0:02:42]} 14. Qc2 {[%clk 0:02:39]}  Qd7 {[%clk 0:02:41]} 15. Bd3 {[%clk 0:02:37]}  g6 {[%clk 0:02:30]} 16. Rfe1 {[%clk 0:02:32]}  Rad8 {[%clk 0:02:25]} 17. Nh2 {[%clk 0:02:31]}  Bf5 {[%clk 0:02:21]} 18. Bxf5 {[%clk 0:02:29]}  Qxf5 {[%clk 0:02:20]} 19. Qxf5 {[%clk 0:02:29]}  gxf5 {[%clk 0:02:20]} 20. Nf3 {[%clk 0:02:29]}  Ne4 {[%clk 0:02:18]} 21. Nd4 {[%clk 0:02:28]}  Nd6 {[%clk 0:02:18]} 22. Rad1 {[%clk 0:02:21]}  Kg7 {[%clk 0:02:18]} 23. b3 {[%clk 0:02:11]}  Kf6 {[%clk 0:02:16]} 24. Rd2 {[%clk 0:02:11]}  Ne4 {[%clk 0:02:15]} 25. Rd3 {[%clk 0:02:10]}  h5 {[%clk 0:02:13]} 26. Red1 {[%clk 0:02:09]}  Rh8 {[%clk 0:02:10]} 27. Nf3 {[%clk 0:02:09]}  Nc5 {[%clk 0:02:05]} 28. R3d2 {[%clk 0:02:08]}  Rd7 {[%clk 0:01:55]} 29. c4 {[%clk 0:02:08]}  Ne4 {[%clk 0:01:53]} 30. Rd3 {[%clk 0:02:04]}  Rhd8 {[%clk 0:01:52]} 31. cxd5 {[%clk 0:02:01]}  Rxd5 {[%clk 0:01:47]} 32. Rxd5 {[%clk 0:02:00]}  Rxd5 {[%clk 0:01:47]} 33. Rc1 {[%clk 0:01:35]}  Ra5 {[%clk 0:01:41]} 34. Rc2 {[%clk 0:01:34]}  Rd5 {[%clk 0:01:38]} 35. Kf1 {[%clk 0:01:31]}  Rd1+ {[%clk 0:01:33]} 36. Ke2 {[%clk 0:01:31]}  Ra1 {[%clk 0:01:33]} 37. Nd2 {[%clk 0:01:24]}  Nd6 {[%clk 0:01:09]} 38. Kf3 {[%clk 0:01:13]}  Rd1 {[%clk 0:00:57]} 39. Ke2 {[%clk 0:01:12]}  Rg1 {[%clk 0:00:56]} 40. Kf3 {[%clk 0:01:12]}  Ke6 {[%clk 0:00:51]} 41. Rc5 {[%clk 0:00:43]}  f6 {[%clk 0:00:46]} 42. Ra5 {[%clk 0:00:41]}  a6 {[%clk 0:00:45]} 43. Ra4 {[%clk 0:00:39]}  Nf7 {[%clk 0:00:44]} 44. Rb4 {[%clk 0:00:38]}  Ne5+ {[%clk 0:00:43]} 45. Ke2 {[%clk 0:00:38]}  b5 {[%clk 0:00:42]} 46. a4 {[%clk 0:00:37]}  Rxg2 {[%clk 0:00:31]} 47. Kf1 {[%clk 0:00:33]}  Rh2 {[%clk 0:00:29]} 48. axb5 {[%clk 0:00:33]}  axb5 {[%clk 0:00:25]} 49. Rf4 {[%clk 0:00:31]}  Rh1+ {[%clk 0:00:21]} 50. Kg2 {[%clk 0:00:28]}  Rd1 {[%clk 0:00:21]} 51. Nf3 {[%clk 0:00:20]}  Nxf3 {[%clk 0:00:19]} 52. Kxf3 {[%clk 0:00:21]}  Rd3 {[%clk 0:00:17]} 53. b4 {[%clk 0:00:20]}  Rc3 {[%clk 0:00:16]} 54. Rh4 {[%clk 0:00:19]}  Ke5 {[%clk 0:00:15]} 55. Rxh5 {[%clk 0:00:17]}  Rc4 {[%clk 0:00:15]} 56. Rh8 {[%clk 0:00:16]}  Rxb4 {[%clk 0:00:15]} 57. Re8+ {[%clk 0:00:17]}  Kd5 {[%clk 0:00:16]} 58. Rd8+ {[%clk 0:00:17]}  Kc5 {[%clk 0:00:16]} 59. Rf8 {[%clk 0:00:16]}  Kc4 {[%clk 0:00:09]} 60. Rxf6 {[%clk 0:00:16]} 1-0


[Site "https://www.chess.com"]

[Event "Titled Tuesday Blitz January 10 Early 2023"]
[White "Donskov, Anatoly"]
[Black "Selkirk, Rebecca"]
[WhiteFideId "24143413"]
[BlackFideId "14306514"]
[WhiteElo "2279"]
[BlackElo "1656"]
[Result "1-0"]
[Round "02"]
[TimeControl "180+2"]
[Date "2023.01.10"]
[WhiteClock "0:02:27"]
[BlackClock "0:00:13"]

1. e4 {[%clk 0:02:57]}  c5 {[%clk 0:02:59]} 2. Nf3 {[%clk 0:02:57]}  e6 {[%clk 0:02:58]} 3. d4 {[%clk 0:02:57]}  cxd4 {[%clk 0:02:58]} 4. Nxd4 {[%clk 0:02:58]}  a6 {[%clk 0:02:59]} 5. c4 {[%clk 0:02:58]}  Qc7 {[%clk 0:02:54]} 6. Nc3 {[%clk 0:02:58]}  b6 {[%clk 0:02:43]} 7. Be3 {[%clk 0:02:55]}  Bb7 {[%clk 0:02:43]} 8. f3 {[%clk 0:02:55]}  d6 {[%clk 0:02:40]} 9. Be2 {[%clk 0:02:55]}  Nd7 {[%clk 0:02:40]} 10. O-O {[%clk 0:02:55]}  Ngf6 {[%clk 0:02:40]} 11. Rc1 {[%clk 0:02:55]}  Be7 {[%clk 0:02:39]} 12. b4 {[%clk 0:02:55]}  O-O {[%clk 0:02:14]} 13. a3 {[%clk 0:02:55]}  Rfe8 {[%clk 0:02:04]} 14. Qd2 {[%clk 0:02:50]}  Rac8 {[%clk 0:02:03]} 15. Rfd1 {[%clk 0:02:50]}  Qb8 {[%clk 0:02:01]} 16. Kh1 {[%clk 0:02:49]}  Bd8 {[%clk 0:01:58]} 17. Bf1 {[%clk 0:02:47]}  Bc7 {[%clk 0:01:57]} 18. b5 {[%clk 0:02:47]}  a5 {[%clk 0:01:18]} 19. Nc6 {[%clk 0:02:46]}  Qa8 {[%clk 0:01:14]} 20. Rb1 {[%clk 0:02:46]}  Bxc6 {[%clk 0:00:57]} 21. bxc6 {[%clk 0:02:47]}  Qxc6 {[%clk 0:00:58]} 22. Nb5 {[%clk 0:02:47]}  Ne5 {[%clk 0:00:36]} 23. Na7 {[%clk 0:02:44]}  Nxc4 {[%clk 0:00:19]} 24. Bxc4 {[%clk 0:02:28]}  Qxc4 {[%clk 0:00:20]} 25. Nxc8 {[%clk 0:02:29]}  Rxc8 {[%clk 0:00:21]} 26. Rdc1 {[%clk 0:02:30]}  Qa4 {[%clk 0:00:13]} 27. Bxb6 {[%clk 0:02:27]} 1-0


[Site "https://www.chess.com"]

[Event "Titled Tuesday Blitz January 10 Early 2023"]
[White "Lutz, Igor Oscar"]
[Black "Dudzinski, Pawel"]
[WhiteFideId "2110806"]
[BlackFideId "1117890"]
[WhiteElo "1969"]
[BlackElo "2186"]
[Result "0-1"]
[Round "02"]
[TimeControl "180+2"]
[Date "2023.01.10"]
[WhiteClock "0:00:04"]
[BlackClock "0:01:13"]

1. d4 {[%clk 0:03:00]}  d5 {[%clk 0:02:59]} 2. c4 {[%clk 0:03:00]}  c6 {[%clk 0:03:00]} 3. Nf3 {[%clk 0:03:00]}  e6 {[%clk 0:03:00]} 4. g3 {[%clk 0:03:00]}  f5 {[%clk 0:03:01]} 5. Bg2 {[%clk 0:03:01]}  Nf6 {[%clk 0:03:01]} 6. O-O {[%clk 0:03:00]}  Be7 {[%clk 0:03:02]} 7. b3 {[%clk 0:03:01]}  O-O {[%clk 0:03:03]} 8. Ba3 {[%clk 0:03:01]}  Bd7 {[%clk 0:03:03]} 9. Bxe7 {[%clk 0:02:40]}  Qxe7 {[%clk 0:03:04]} 10. Nbd2 {[%clk 0:02:34]}  Be8 {[%clk 0:03:05]} 11. Ne5 {[%clk 0:02:32]}  Bh5 {[%clk 0:03:02]} 12. Ndf3 {[%clk 0:02:23]}  Nbd7 {[%clk 0:03:01]} 13. Qc2 {[%clk 0:02:22]}  Bxf3 {[%clk 0:03:00]} 14. Nxf3 {[%clk 0:02:19]}  Ne4 {[%clk 0:02:55]} 15. c5 {[%clk 0:02:09]}  e5 {[%clk 0:02:43]} 16. e3 {[%clk 0:02:05]}  f4 {[%clk 0:02:40]} 17. dxe5 {[%clk 0:02:00]}  fxe3 {[%clk 0:02:36]} 18. fxe3 {[%clk 0:01:53]}  Nexc5 {[%clk 0:02:22]} 19. Rac1 {[%clk 0:01:22]}  Ne4 {[%clk 0:02:12]} 20. Qb2 {[%clk 0:01:19]}  Rae8 {[%clk 0:02:12]} 21. b4 {[%clk 0:00:59]}  a6 {[%clk 0:02:12]} 22. a4 {[%clk 0:00:59]}  Nxe5 {[%clk 0:02:12]} 23. Nxe5 {[%clk 0:00:58]}  Qxe5 {[%clk 0:02:13]} 24. Rxf8+ {[%clk 0:00:57]}  Kxf8 {[%clk 0:02:13]} 25. Rf1+ {[%clk 0:00:37]}  Nf6 {[%clk 0:02:13]} 26. Qxe5 {[%clk 0:00:13]}  Rxe5 {[%clk 0:02:13]} 27. b5 {[%clk 0:00:14]}  axb5 {[%clk 0:02:12]} 28. axb5 {[%clk 0:00:14]}  Rxe3 {[%clk 0:02:10]} 29. Rb1 {[%clk 0:00:15]}  c5 {[%clk 0:02:00]} 30. Ra1 {[%clk 0:00:15]}  b6 {[%clk 0:01:55]} 31. Ra8+ {[%clk 0:00:13]}  Re8 {[%clk 0:01:55]} 32. Ra7 {[%clk 0:00:13]}  Re7 {[%clk 0:01:55]} 33. Ra8+ {[%clk 0:00:13]}  Kf7 {[%clk 0:01:54]} 34. Rd8 {[%clk 0:00:12]}  Rc7 {[%clk 0:01:17]} 35. Rd6 {[%clk 0:00:03]}  c4 {[%clk 0:01:14]} 36. Rxb6 {[%clk 0:00:04]}  c3 {[%clk 0:01:13]} 0-1


[Site "https://www.chess.com"]

[Event "Titled Tuesday Blitz January 10 Early 2023"]
[White "Jumanov, Elbek"]
[Black "Cruz Gomez, Miguel Angel"]
[WhiteFideId "14202905"]
[BlackFideId "5137160"]
[WhiteElo "2155"]
[BlackElo "1950"]
[Result "1-0"]
[Round "02"]
[TimeControl "180+2"]
[Date "2023.01.10"]
[WhiteClock "0:00:48"]
[BlackClock "0:00:16"]

1. c4 {[%clk 0:03:00]}  e5 {[%clk 0:02:59]} 2. g3 {[%clk 0:03:00]}  Nc6 {[%clk 0:02:57]} 3. Bg2 {[%clk 0:03:01]}  f5 {[%clk 0:02:56]} 4. Nc3 {[%clk 0:03:01]}  Nf6 {[%clk 0:02:39]} 5. a3 {[%clk 0:03:00]}  g6 {[%clk 0:02:36]} 6. b4 {[%clk 0:02:59]}  Bg7 {[%clk 0:02:34]} 7. b5 {[%clk 0:02:59]}  Ne7 {[%clk 0:02:26]} 8. e3 {[%clk 0:02:52]}  d6 {[%clk 0:02:26]} 9. Nge2 {[%clk 0:02:52]}  O-O {[%clk 0:02:20]} 10. O-O {[%clk 0:02:52]}  g5 {[%clk 0:02:21]} 11. f4 {[%clk 0:02:50]}  h6 {[%clk 0:02:16]} 12. d3 {[%clk 0:02:43]}  c6 {[%clk 0:02:13]} 13. bxc6 {[%clk 0:02:43]}  bxc6 {[%clk 0:02:14]} 14. c5 {[%clk 0:02:33]}  Nfd5 {[%clk 0:02:07]} 15. Nxd5 {[%clk 0:02:32]}  cxd5 {[%clk 0:02:06]} 16. cxd6 {[%clk 0:02:22]}  Qxd6 {[%clk 0:02:07]} 17. fxe5 {[%clk 0:02:21]}  Qxe5 {[%clk 0:01:53]} 18. Rb1 {[%clk 0:02:16]}  Ba6 {[%clk 0:01:47]} 19. Kh1 {[%clk 0:02:08]}  Rab8 {[%clk 0:01:44]} 20. Rxb8 {[%clk 0:01:53]}  Rxb8 {[%clk 0:01:45]} 21. Nd4 {[%clk 0:01:47]}  Kh7 {[%clk 0:00:48]} 22. Qc2 {[%clk 0:01:38]}  Rc8 {[%clk 0:00:47]} 23. Qb3 {[%clk 0:01:37]}  Rb8 {[%clk 0:00:47]} 24. Qc2 {[%clk 0:01:33]}  Rc8 {[%clk 0:00:46]} 25. Qd2 {[%clk 0:01:33]}  Rb8 {[%clk 0:00:41]} 26. a4 {[%clk 0:01:31]}  Rb6 {[%clk 0:00:39]} 27. Ba3 {[%clk 0:01:30]}  Bc8 {[%clk 0:00:35]} 28. Bxe7 {[%clk 0:01:27]}  Qxe7 {[%clk 0:00:36]} 29. Nxf5 {[%clk 0:01:24]}  Bxf5 {[%clk 0:00:35]} 30. Rxf5 {[%clk 0:01:25]}  Rb2 {[%clk 0:00:35]} 31. Qc1 {[%clk 0:01:13]}  Qb4 {[%clk 0:00:33]} 32. Rf1 {[%clk 0:01:12]}  Bc3 {[%clk 0:00:31]} 33. Bxd5 {[%clk 0:01:08]}  h5 {[%clk 0:00:20]} 34. Be4+ {[%clk 0:01:02]}  Kg7 {[%clk 0:00:19]} 35. Qd1 {[%clk 0:00:59]}  g4 {[%clk 0:00:16]} 36. d4 {[%clk 0:00:53]}  Rd2 {[%clk 0:00:17]} 37. Qc1 {[%clk 0:00:49]}  Bb2 {[%clk 0:00:16]} 38. Qc7+ {[%clk 0:00:48]} 1-0


[Site "https://www.chess.com"]

[Event "Titled Tuesday Blitz January 10 Early 2023"]
[White "Perez Rodriguez, Luis Manuel"]
[Black "Mohammadian, Mohammad"]
[WhiteFideId "3503364"]
[BlackFideId "12566055"]
[WhiteElo "2329"]
[BlackElo "1398"]
[Result "1-0"]
[Round "02"]
[TimeControl "180+2"]
[Date "2023.01.10"]
[WhiteClock "0:01:39"]
[BlackClock "0:00:05"]

1. e4 {[%clk 0:03:00]}  e5 {[%clk 0:02:59]} 2. Nf3 {[%clk 0:03:00]}  Nc6 {[%clk 0:02:58]} 3. Bb5 {[%clk 0:03:00]}  a6 {[%clk 0:02:57]} 4. Ba4 {[%clk 0:02:59]}  Nf6 {[%clk 0:02:56]} 5. O-O {[%clk 0:02:59]}  Be7 {[%clk 0:02:55]} 6. Re1 {[%clk 0:02:59]}  b5 {[%clk 0:02:55]} 7. Bb3 {[%clk 0:03:00]}  d6 {[%clk 0:02:55]} 8. c3 {[%clk 0:03:00]}  Na5 {[%clk 0:02:55]} 9. Bc2 {[%clk 0:02:59]}  c5 {[%clk 0:02:54]} 10. d4 {[%clk 0:02:55]}  Qc7 {[%clk 0:02:54]} 11. h3 {[%clk 0:02:52]}  O-O {[%clk 0:02:52]} 12. a3 {[%clk 0:02:53]}  Bd7 {[%clk 0:02:47]} 13. b4 {[%clk 0:02:52]}  cxb4 {[%clk 0:02:41]} 14. axb4 {[%clk 0:02:51]}  Nc4 {[%clk 0:02:39]} 15. Nbd2 {[%clk 0:02:51]}  Nxd2 {[%clk 0:02:39]} 16. Bxd2 {[%clk 0:02:46]}  a5 {[%clk 0:02:38]} 17. bxa5 {[%clk 0:02:43]}  Rxa5 {[%clk 0:02:36]} 18. Rxa5 {[%clk 0:02:41]}  Qxa5 {[%clk 0:02:35]} 19. dxe5 {[%clk 0:02:41]}  dxe5 {[%clk 0:02:28]} 20. Nxe5 {[%clk 0:02:39]}  Rd8 {[%clk 0:02:09]} 21. Qa1 {[%clk 0:02:36]}  Qxa1 {[%clk 0:02:08]} 22. Rxa1 {[%clk 0:02:34]}  Be6 {[%clk 0:02:03]} 23. Be3 {[%clk 0:02:23]}  h6 {[%clk 0:01:56]} 24. Nc6 {[%clk 0:02:21]}  Re8 {[%clk 0:01:47]} 25. Ra7 {[%clk 0:02:17]}  Bd6 {[%clk 0:01:42]} 26. e5 {[%clk 0:02:13]}  Bxe5 {[%clk 0:01:05]} 27. Nxe5 {[%clk 0:02:11]}  Bc4 {[%clk 0:01:03]} 28. Nxc4 {[%clk 0:02:10]}  bxc4 {[%clk 0:01:03]} 29. Rc7 {[%clk 0:01:56]}  Nd5 {[%clk 0:00:56]} 30. Rxc4 {[%clk 0:01:56]}  Nxe3 {[%clk 0:00:55]} 31. fxe3 {[%clk 0:01:57]}  g6 {[%clk 0:00:45]} 32. Kf2 {[%clk 0:01:57]}  Kg7 {[%clk 0:00:44]} 33. Kf3 {[%clk 0:01:56]}  Rd8 {[%clk 0:00:39]} 34. Rc7 {[%clk 0:01:55]}  Kf8 {[%clk 0:00:28]} 35. Bb3 {[%clk 0:01:54]}  f5 {[%clk 0:00:28]} 36. Rf7+ {[%clk 0:01:51]}  Ke8 {[%clk 0:00:27]} 37. Rh7 {[%clk 0:01:49]}  Rd3 {[%clk 0:00:24]} 38. Bf7+ {[%clk 0:01:48]}  Kf8 {[%clk 0:00:23]} 39. Bxg6 {[%clk 0:01:48]}  Rxc3 {[%clk 0:00:23]} 40. Bxf5 {[%clk 0:01:48]}  Rc6 {[%clk 0:00:20]} 41. e4 {[%clk 0:01:48]}  Rf6 {[%clk 0:00:20]} 42. g4 {[%clk 0:01:46]}  Kg8 {[%clk 0:00:19]} 43. Ra7 {[%clk 0:01:46]}  h5 {[%clk 0:00:18]} 44. g5 {[%clk 0:01:46]}  Rf8 {[%clk 0:00:15]} 45. Kf4 {[%clk 0:01:46]}  h4 {[%clk 0:00:12]} 46. Kg4 {[%clk 0:01:46]}  Rd8 {[%clk 0:00:11]} 47. Kxh4 {[%clk 0:01:46]}  Rd2 {[%clk 0:00:11]} 48. Kh5 {[%clk 0:01:44]}  Rd3 {[%clk 0:00:10]} 49. h4 {[%clk 0:01:43]}  Rg3 {[%clk 0:00:08]} 50. Kg6 {[%clk 0:01:42]}  Kf8 {[%clk 0:00:08]} 51. h5 {[%clk 0:01:43]}  Ke8 {[%clk 0:00:06]} 52. h6 {[%clk 0:01:41]}  Kf8 {[%clk 0:00:05]} 53. h7 {[%clk 0:01:39]} 1-0


[Site "https://www.chess.com"]

[Event "Titled Tuesday Blitz January 10 Early 2023"]
[White "Samadov, Read"]
[Black "Nakamura, Hikaru"]
[WhiteFideId "13417444"]
[BlackFideId "2016192"]
[WhiteElo "2469"]
[BlackElo "2775"]
[Result "1/2-1/2"]
[Round "03"]
[TimeControl "180+2"]
[Date "2023.01.10"]
[WhiteClock "0:00:10"]
[BlackClock "0:00:06"]

1. d4 {[%clk 0:03:00]}  Nf6 {[%clk 0:02:57]} 2. c4 {[%clk 0:03:00]}  e6 {[%clk 0:02:55]} 3. Nc3 {[%clk 0:03:01]}  Bb4 {[%clk 0:02:54]} 4. Qc2 {[%clk 0:03:01]}  d5 {[%clk 0:02:49]} 5. a3 {[%clk 0:03:01]}  Be7 {[%clk 0:02:37]} 6. cxd5 {[%clk 0:02:48]}  exd5 {[%clk 0:02:37]} 7. Bg5 {[%clk 0:02:47]}  O-O {[%clk 0:02:34]} 8. e3 {[%clk 0:02:47]}  Nbd7 {[%clk 0:02:26]} 9. Bd3 {[%clk 0:02:47]}  h6 {[%clk 0:02:26]} 10. Bh4 {[%clk 0:02:46]}  c6 {[%clk 0:02:26]} 11. Nge2 {[%clk 0:02:46]}  Re8 {[%clk 0:02:26]} 12. O-O {[%clk 0:02:45]}  Nh5 {[%clk 0:02:26]} 13. Bxe7 {[%clk 0:02:44]}  Qxe7 {[%clk 0:02:27]} 14. b4 {[%clk 0:02:25]}  a6 {[%clk 0:02:23]} 15. Rab1 {[%clk 0:02:12]}  b5 {[%clk 0:02:21]} 16. e4 {[%clk 0:02:11]}  dxe4 {[%clk 0:02:18]} 17. Bxe4 {[%clk 0:02:06]}  Bb7 {[%clk 0:02:18]} 18. Ng3 {[%clk 0:02:03]}  Nxg3 {[%clk 0:02:13]} 19. hxg3 {[%clk 0:02:03]}  Nb6 {[%clk 0:02:13]} 20. Rfe1 {[%clk 0:02:00]}  Qc7 {[%clk 0:02:04]} 21. a4 {[%clk 0:01:52]}  Nc4 {[%clk 0:02:02]} 22. Rbd1 {[%clk 0:01:47]}  Rad8 {[%clk 0:02:00]} 23. Bf3 {[%clk 0:01:42]}  Rxe1+ {[%clk 0:01:47]} 24. Rxe1 {[%clk 0:01:42]}  g6 {[%clk 0:01:48]} 25. axb5 {[%clk 0:01:33]}  cxb5 {[%clk 0:01:29]} 26. Bxb7 {[%clk 0:01:31]}  Qxb7 {[%clk 0:01:30]} 27. d5 {[%clk 0:01:32]}  Nd6 {[%clk 0:01:27]} 28. Qd2 {[%clk 0:01:30]}  Qc7 {[%clk 0:01:22]} 29. Ne4 {[%clk 0:01:28]}  Nxe4 {[%clk 0:01:10]} 30. Rxe4 {[%clk 0:01:28]}  h5 {[%clk 0:01:06]} 31. Rd4 {[%clk 0:01:23]}  Qd6 {[%clk 0:01:04]} 32. Qc2 {[%clk 0:01:16]}  Re8 {[%clk 0:01:04]} 33. Re4 {[%clk 0:01:10]}  Rd8 {[%clk 0:01:01]} 34. Rd4 {[%clk 0:01:10]}  Qe5 {[%clk 0:01:00]} 35. Qd2 {[%clk 0:01:08]}  Rd6 {[%clk 0:01:00]} 36. Rd3 {[%clk 0:01:01]}  Kg7 {[%clk 0:00:54]} 37. Rd4 {[%clk 0:01:01]}  Kf8 {[%clk 0:00:53]} 38. Qh6+ {[%clk 0:00:59]}  Ke7 {[%clk 0:00:43]} 39. Qd2 {[%clk 0:00:55]}  Kd8 {[%clk 0:00:41]} 40. Rd3 {[%clk 0:00:50]}  g5 {[%clk 0:00:38]} 41. Rd4 {[%clk 0:00:49]}  Ke7 {[%clk 0:00:36]} 42. Rd3 {[%clk 0:00:45]}  Kf8 {[%clk 0:00:36]} 43. Rd4 {[%clk 0:00:43]}  Kg7 {[%clk 0:00:27]} 44. Rd3 {[%clk 0:00:37]}  Kg6 {[%clk 0:00:27]} 45. Rd4 {[%clk 0:00:35]}  Qf5 {[%clk 0:00:27]} 46. Qc3 {[%clk 0:00:30]}  Qe5 {[%clk 0:00:21]} 47. Qd3+ {[%clk 0:00:26]}  Kg7 {[%clk 0:00:21]} 48. Qd2 {[%clk 0:00:26]}  Kf8 {[%clk 0:00:18]} 49. Rd3 {[%clk 0:00:26]}  Kg8 {[%clk 0:00:17]} 50. Rd4 {[%clk 0:00:24]}  Kg7 {[%clk 0:00:17]} 51. Rd3 {[%clk 0:00:25]}  Kf8 {[%clk 0:00:17]} 52. Rd4 {[%clk 0:00:25]}  Ke7 {[%clk 0:00:17]} 53. Rd3 {[%clk 0:00:25]}  Kd7 {[%clk 0:00:17]} 54. Rd4 {[%clk 0:00:24]}  Kc7 {[%clk 0:00:17]} 55. Qc3+ {[%clk 0:00:23]}  Kb7 {[%clk 0:00:17]} 56. Qd2 {[%clk 0:00:22]}  f6 {[%clk 0:00:16]} 57. Rd3 {[%clk 0:00:22]}  h4 {[%clk 0:00:15]} 58. gxh4 {[%clk 0:00:20]}  gxh4 {[%clk 0:00:16]} 59. Rd4 {[%clk 0:00:14]}  f5 {[%clk 0:00:14]} 60. Rxh4 {[%clk 0:00:14]}  Rxd5 {[%clk 0:00:09]} 61. Rh7+ {[%clk 0:00:14]}  Kb8 {[%clk 0:00:08]} 62. Rh8+ {[%clk 0:00:10]}  Kb7 {[%clk 0:00:07]} 63. Rh7+ {[%clk 0:00:11]}  Kb6 {[%clk 0:00:06]} 64. Rh6+ {[%clk 0:00:10]}  Ka7 {[%clk 0:00:05]} 65. Rh7+ {[%clk 0:00:10]}  Kb8 {[%clk 0:00:06]} 66. Rh8+ {[%clk 0:00:10]}  Kb7 {[%clk 0:00:06]} 67. Rh7+ {[%clk 0:00:10]} 1/2-1/2


[Site "https://www.chess.com"]

[Event "Titled Tuesday Blitz January 10 Early 2023"]
[White "Neiksans, Arturs"]
[Black "Dubov, Daniil"]
[WhiteFideId "11601388"]
[BlackFideId "24126055"]
[WhiteElo "2615"]
[BlackElo "2708"]
[Result "0-1"]
[Round "03"]
[TimeControl "180+2"]
[Date "2023.01.10"]
[WhiteClock "0:00:01"]
[BlackClock "0:00:08"]

1. e4 {[%clk 0:03:00]}  c5 {[%clk 0:03:00]} 2. Nf3 {[%clk 0:03:00]}  e6 {[%clk 0:03:00]} 3. g3 {[%clk 0:02:57]}  d5 {[%clk 0:03:00]} 4. exd5 {[%clk 0:02:57]}  exd5 {[%clk 0:03:01]} 5. d4 {[%clk 0:02:57]}  cxd4 {[%clk 0:03:00]} 6. Nxd4 {[%clk 0:02:55]}  Nc6 {[%clk 0:02:59]} 7. Bg2 {[%clk 0:02:53]}  Bc5 {[%clk 0:03:00]} 8. Nb3 {[%clk 0:02:29]}  Qe7+ {[%clk 0:02:59]} 9. Qe2 {[%clk 0:02:24]}  Qxe2+ {[%clk 0:02:59]} 10. Kxe2 {[%clk 0:02:24]}  Bb6 {[%clk 0:02:59]} 11. Be3 {[%clk 0:02:18]}  Bxe3 {[%clk 0:02:35]} 12. Kxe3 {[%clk 0:02:14]}  Nf6 {[%clk 0:02:36]} 13. Re1 {[%clk 0:02:02]}  O-O {[%clk 0:02:35]} 14. Kd2 {[%clk 0:02:00]}  Ne4+ {[%clk 0:02:16]} 15. Bxe4 {[%clk 0:01:59]}  dxe4 {[%clk 0:02:17]} 16. Rxe4 {[%clk 0:01:56]}  Bf5 {[%clk 0:02:16]} 17. Re3 {[%clk 0:01:55]}  Rfd8+ {[%clk 0:02:13]} 18. Ke1 {[%clk 0:01:44]}  Bxc2 {[%clk 0:01:45]} 19. Na3 {[%clk 0:01:44]}  Bf5 {[%clk 0:01:42]} 20. Rc1 {[%clk 0:01:30]}  Nb4 {[%clk 0:01:33]} 21. Ke2 {[%clk 0:01:14]}  Nxa2 {[%clk 0:01:08]} 22. Rc7 {[%clk 0:01:13]}  b6 {[%clk 0:01:05]} 23. Nb5 {[%clk 0:01:09]}  Nb4 {[%clk 0:00:56]} 24. Rxa7 {[%clk 0:00:54]}  Rxa7 {[%clk 0:00:52]} 25. Nxa7 {[%clk 0:00:53]}  Bd3+ {[%clk 0:00:44]} 26. Kf3 {[%clk 0:00:49]}  f6 {[%clk 0:00:38]} 27. Re7 {[%clk 0:00:42]}  Nd5 {[%clk 0:00:37]} 28. Re1 {[%clk 0:00:34]}  Nb4 {[%clk 0:00:36]} 29. Re7 {[%clk 0:00:34]}  Bc4 {[%clk 0:00:31]} 30. Nc1 {[%clk 0:00:29]}  Rd1 {[%clk 0:00:27]} 31. Ne2 {[%clk 0:00:25]}  Kf8 {[%clk 0:00:26]} 32. Re3 {[%clk 0:00:21]}  Bd5+ {[%clk 0:00:22]} 33. Kg4 {[%clk 0:00:20]}  Rd2 {[%clk 0:00:20]} 34. Nc3 {[%clk 0:00:18]}  Rxb2 {[%clk 0:00:16]} 35. Nc8 {[%clk 0:00:17]}  Bc6 {[%clk 0:00:09]} 36. Nxb6 {[%clk 0:00:14]}  Nc2 {[%clk 0:00:09]} 37. Re2 {[%clk 0:00:14]}  Rb4+ {[%clk 0:00:10]} 38. Kh3 {[%clk 0:00:12]}  Nd4 {[%clk 0:00:10]} 39. Rd2 {[%clk 0:00:10]}  Nf3 {[%clk 0:00:08]} 40. Rd8+ {[%clk 0:00:09]}  Kf7 {[%clk 0:00:08]} 41. Nbd5 {[%clk 0:00:01]}  Rc4 {[%clk 0:00:08]} 0-1


[Site "https://www.chess.com"]

[Event "Titled Tuesday Blitz January 10 Early 2023"]
[White "Lagarde, Maxime"]
[Black "Nepomniachtchi, Ian"]
[WhiteFideId "662399"]
[BlackFideId "4168119"]
[WhiteElo "2579"]
[BlackElo "2794"]
[Result "0-1"]
[Round "03"]
[TimeControl "180+2"]
[Date "2023.01.10"]
[WhiteClock "0:02:04"]
[BlackClock "0:01:53"]

1. e4 {[%clk 0:03:00]}  c5 {[%clk 0:02:59]} 2. Nc3 {[%clk 0:03:00]}  d6 {[%clk 0:02:58]} 3. g3 {[%clk 0:03:01]}  g6 {[%clk 0:02:58]} 4. Bg2 {[%clk 0:03:01]}  Bg7 {[%clk 0:02:58]} 5. Nge2 {[%clk 0:03:02]}  Nc6 {[%clk 0:02:59]} 6. O-O {[%clk 0:03:02]}  Nf6 {[%clk 0:02:59]} 7. d3 {[%clk 0:03:02]}  O-O {[%clk 0:02:59]} 8. h3 {[%clk 0:03:03]}  Rb8 {[%clk 0:02:59]} 9. a4 {[%clk 0:03:03]}  a6 {[%clk 0:02:59]} 10. Be3 {[%clk 0:03:03]}  b5 {[%clk 0:02:55]} 11. axb5 {[%clk 0:03:04]}  axb5 {[%clk 0:02:56]} 12. Qd2 {[%clk 0:03:05]}  b4 {[%clk 0:02:55]} 13. Nd1 {[%clk 0:03:05]}  e5 {[%clk 0:02:52]} 14. Bh6 {[%clk 0:03:04]}  Qb6 {[%clk 0:02:46]} 15. Bxg7 {[%clk 0:03:03]}  Kxg7 {[%clk 0:02:46]} 16. Ne3 {[%clk 0:03:02]}  Be6 {[%clk 0:02:45]} 17. f4 {[%clk 0:03:01]}  exf4 {[%clk 0:02:07]} 18. gxf4 {[%clk 0:03:02]}  c4 {[%clk 0:02:06]} 19. f5 {[%clk 0:02:51]}  cxd3 {[%clk 0:02:05]} 20. fxe6 {[%clk 0:02:50]}  dxe2 {[%clk 0:02:05]} 21. Rxf6 {[%clk 0:02:30]}  Kxf6 {[%clk 0:02:06]} 22. Kh2 {[%clk 0:02:20]}  fxe6 {[%clk 0:02:03]} 23. Ng4+ {[%clk 0:02:13]}  Kg7 {[%clk 0:02:02]} 24. Qxd6 {[%clk 0:02:08]}  Rbd8 {[%clk 0:01:53]} 25. Qg3 {[%clk 0:02:04]} 0-1


[Site "https://www.chess.com"]